[Event "WSTCC-50 2024"]
[Site "Krakow"]
[Date "2024.07.04"]
[Round "3.3"]
[White "Jhunjhnuwala, Ramesh"]
[Black "Briestensky, Rastislav"]
[Result "0-1"]
[ECO "B07"]
[WhiteElo "2050"]
[BlackElo "2274"]
[Annotator "TA"]
[PlyCount "102"]
[EventDate "2024.07.01"]
[EventType "team-tourn"]
[EventCountry "POL"]
[SourceTitle "playchess.com"]
[Source "ChessBase"]
[SourceQuality "1"]
[TimeControl "40/5400+30:1800+30"]

{[%evp 9,102,38,52,31,36,36,50,0,0,0,-6,-13,0,0,-14,-33,-34,-35,-18,-26,-18,-20,-14,-43,-16,-45,-35,-42,-49,-75,-64,-89,-81,-74,-77,-78,-59,-64,-57,-68,-61,-106,-128,-242,-220,-236,-203,-245,-223,-221,-218,-222,-219,-221,-222,-218,-231,-230,-227,-251,-251,-265,-156,-231,-220,-324,-339,-357,-351,-441,-442,-509,-502,-509,-479,-535,-526,-524,-518,-652,-626,-710,-379,-378,-350,-971,-565,-633,-627,-1875,-1833,-2329,-1769,-1927,-1786]} 1. e4 {[%emt 0:00:07]} d6 {[%emt 0:00:04]} 2. d4 {[%emt 0:00:12]} Nf6 {[%emt 0:00:07]} 3. Nc3 {[%emt 0:00:46]} c6 {[%emt 0:00:10]} 4. Nf3 {[%emt 0:03:19]} Qc7 {[%emt 0:00:14]} 5. h3 {[%emt 0:04:20]} e5 {[%emt 0:00:09]} 6. Be3 {[%emt 0:03:08]} Be7 {[%emt 0:00:22]} 7. a4 {[%emt 0:08:35]} O-O {[%emt 0:00:14]} 8. dxe5 {[%emt 0:10:18]} ({Vorzuziehen ist} 8. Bc4 $14) 8... dxe5 $11 {[%emt 0:00:15]} 9. Bc4 {[%emt 0:00:14]} Nbd7 {[%emt 0:00:18]} 10. Qe2 {[%emt 0:05:54]} Nc5 {[%emt 0:01:38]} 11. Nd2 {[%emt 0:04:45]} Ne6 {[%emt 0:00:07]} 12. Bxe6 {[%emt 0:09:54]} Bxe6 {[%emt 0:00:07]} 13. O-O {[%emt 0:00:23]} Rfe8 {[%emt 0:01:45]} 14. Rfd1 {[%emt 0:03:41]} Nd7 {[%emt 0:07:52]} 15. Nf3 {[%emt 0:17:47]} f6 {[%emt 0:05:40]} 16. b3 {[%emt 0:07:39]} a6 {[%emt 0:02:36]} 17. Rd3 {[%emt 0:06:42]} b5 {[%emt 0:02:01]} 18. axb5 {[%emt 0:01:33]} axb5 {[%emt 0:00:29]} 19. Rad1 {[%emt 0:00:13]} Bb4 {[%emt 0:11:44]} 20. Nh4 {[%emt 0:03:14]} Nc5 {[%emt 0:09:37]} 21. Bxc5 {[%emt 0:00:10]} Bxc5 {[%emt 0:00:07]} 22. Qh5 {[%emt 0:00:34]} Bf8 {[%emt 0:10:23]} 23. Qf3 {[%emt 0:01:06]} b4 {[%emt 0:05:22]} 24. Na4 {[%emt 0:00:42]} c5 {[%emt 0:00:22]} 25. Nf5 {[%emt 0:01:00] Schwarz bringt die Sache ungefährdet zu Ende.} c4 {[%emt 0:00:25]} 26. Rd5 {[%emt 0:02:34]} Bxd5 {[%emt 0:02:19]} 27. exd5 {[%emt 0:00:26]} e4 {[%emt 0:02:55]} 28. Qg4 {[%emt 0:00:35] [#] Schwarz muss nun d6 beachten.} cxb3 {[%emt 0:02:29]} 29. cxb3 {[%emt 0:00:07]} Rad8 {[%emt 0:02:24]} 30. Nb2 {[%emt 0:00:12]} g6 {[%emt 0:00:56]} 31. Nc4 {[%emt 0:00:42] Pariert Qe5.} Qd7 {[%emt 0:02:00]} 32. Nfe3 {[%emt 0:00:04]} Qxg4 {[%emt 0:00:17]} 33. hxg4 {[%emt 0:00:22]} Kf7 {[%emt 0:01:07]} 34. g3 {[%emt 0:00:34]} Bc5 {[%emt 0:00:13]} 35. Kg2 {[%emt 0:00:42]} Ke7 {[%emt 0:03:14]} ({Günstiger ist} 35... Ra8 $19 {Und jetzt ...Ra2 wäre schön.} 36. d6 Ra2) 36. Rh1 {[%emt 0:00:19]} (36. Na5 $17 {ist wohl besser.}) 36... Rh8 $19 {[%emt 0:00:05]} 37. Ra1 {[%emt 0:00:37]} (37. Rd1 $142) 37... Ra8 {[%emt 0:00:14]} 38. Rd1 {[%emt 0:00:03]} Ra2 {[%emt 0:00:59]} 39. d6+ {[%emt 0:00:26]} Ke6 {[%emt 0:00:58]} 40. Rd5 {[%emt 0:01:42]} Bxe3 {[%emt 0:01:56]} 41. Nxe3 {[%emt 0:30:04][%mdl 4096] Endspiel. KRR-KRN} Rb2 {[%emt 0:31:55]} 42. Rb5 {[%emt 0:03:13]} Rxb3 {[%emt 0:01:37]} 43. Nc4 {[%emt 0:00:40] [#]} e3 {[%emt 0:04:25] Gegen Nd2 gerichtet.} 44. fxe3 {[%emt 0:01:00]} (44. Nxe3 Kxd6) 44... Rc8 {[%emt 0:05:09]} 45. d7 {[%emt 0:00:00]} Rd8 {[%emt 0:00:00]} ({Lieber nicht} 45... Rxc4 46. d8=Q (46. d8=R Ke7 $15) 46... Rbc3 47. Rd5 Rc2+ 48. Kh3) 46. Nb6 {[%emt 0:00:00]} Kd6 {[%emt 0:00:00]} ({Nicht} 46... Rxe3 47. Rxb4 Rd3 48. Kf2 $19) 47. Nc4+ $2 {[%emt 0:00:00]} (47. Nd5) 47... Kxd7 {[%emt 0:00:00] Droht stark ...Kc6. Schwarz steht klar auf Gewinn.} 48. Rb7+ {[%emt 0:00:00]} Ke6 {[%emt 0:00:00] Droht ...Rc8 und aus.} 49. Rxh7 {[%emt 0:00:00]} Rc3 {[%emt 0:00:00]} 50. Rc7 {[%emt 0:00:00]} Rd2+ {[%emt 0:00:00]} 51. Kf3 {[%emt 0:00:00]} Rdc2 {[%emt 0:00:00] Gewichteter Fehlerwert: Weiß=0.71/Schwarz=0.28 (präzise) .  Fehler:       	Weiß=5     	Schwarz=1     Ungenau:       	Weiß=5     	Schwarz=2     OK:         	Weiß=11    	Schwarz=18    Bester:       	---       	Schwarz=1} 0-1

[Event "WSTCC-50 2024"]
[Site "Krakow"]
[Date "2024.07.04"]
[Round "3.3"]
[White "Baliuniene, Margarita"]
[Black "Fraser-Mitchell, Jeremy N"]
[Result "1-0"]
[ECO "A81"]
[WhiteElo "1960"]
[BlackElo "2036"]
[Annotator "NA RC"]
[PlyCount "83"]
[EventDate "2024.07.01"]
[EventType "team-tourn"]
[EventCountry "POL"]
[SourceTitle "playchess.com"]
[Source "ChessBase"]
[SourceQuality "1"]
[TimeControl "40/5400+30:1800+30"]

1. d4 {[%emt 0:00:03]} f5 {[%emt 0:00:05]} 2. g3 {[%emt 0:00:22]} Nf6 {[%emt 0:00:09]} 3. Bg2 {[%emt 0:00:05]} g6 {[%emt 0:00:06]} 4. c4 {[%emt 0:00:52]} Bg7 {[%emt 0:00:07]} 5. Nc3 {[%emt 0:00:53]} O-O {[%emt 0:00:11]} 6. Nf3 {[%emt 0:01:09]} d6 {[%emt 0:00:13]} 7. O-O {[%emt 0:00:30]} Qe8 {[%emt 0:00:15]} 8. e4 {[%emt 0:02:47]} fxe4 {[%emt 0:00:13]} 9. Ng5 {[%emt 0:00:24]} Nc6 {[%emt 0:03:18]} 10. Nb5 {[%emt 0:05:38]} Bg4 {[%emt 0:07:38]} 11. Qb3 {[%emt 0:04:33]} Qc8 {[%emt 0:10:19]} 12. d5 {[%emt 0:19:54]} Nd8 {[%emt 0:11:11]} 13. Be3 {[%emt 0:02:41]} c6 {[%emt 0:12:50]} 14. Nc3 {[%emt 0:04:59]} c5 {[%emt 0:15:23]} 15. Ngxe4 {[%emt 0:03:27]} Nxe4 {[%emt 0:01:12]} 16. Nxe4 {[%emt 0:00:21]} Nf7 {[%emt 0:03:57]} 17. f4 {[%emt 0:03:29]} Rb8 {[%emt 0:00:37]} 18. Nc3 {[%emt 0:03:22]} Nh6 {[%emt 0:02:52]} 19. Bf2 {[%emt 0:02:31]} Nf5 {[%emt 0:03:03]} 20. Rae1 {[%emt 0:02:01]} Nd4 {[%emt 0:02:07]} 21. Bxd4 {[%emt 0:00:32]} Bxd4+ {[%emt 0:00:15]} 22. Kh1 {[%emt 0:00:05]} Rf7 {[%emt 0:02:42]} 23. Ne4 {[%emt 0:02:14]} h6 {[%emt 0:01:33]} 24. Nd2 {[%emt 0:04:39]} Bd7 {[%emt 0:02:38]} 25. Nf3 {[%emt 0:01:13]} Bf6 {[%emt 0:00:11]} 26. Qc2 {[%emt 0:04:31]} Bf5 {[%emt 0:00:21]} 27. Qe2 {[%emt 0:01:11]} a6 {[%emt 0:02:02]} 28. Nh4 {[%emt 0:03:52]} Bxh4 {[%emt 0:00:42]} 29. gxh4 {[%emt 0:00:01]} b5 {[%emt 0:03:23]} 30. h5 {[%emt 0:03:47]} bxc4 {[%emt 0:02:21]} 31. hxg6 {[%emt 0:01:03]} Bxg6 {[%emt 0:01:31]} 32. f5 {[%emt 0:04:53]} Bxf5 {[%emt 0:04:16]} 33. Bh3 {[%emt 0:03:31]} Bxh3 {[%emt 0:08:44]} 34. Rxf7 {[%emt 0:00:28]} Kxf7 {[%emt 0:00:14]} 35. Qxe7+ {[%emt 0:01:37]} Kg6 {[%emt 0:00:29]} 36. Qxd6+ {[%emt 0:04:16]} Kg5 {[%emt 0:00:48]} 37. Qe7+ {[%emt 0:01:28]} Kg6 {[%emt 0:00:16]} 38. Rg1+ {[%emt 0:00:57]} Kh5 {[%emt 0:00:23]} 39. Qf7+ {[%emt 0:00:55]} Kh4 {[%emt 0:00:10]} 40. Qf6+ {[%emt 0:00:08]} Kh5 {[%emt 0:00:08]} 41. Qg6+ {[%emt 0:30:06]} Kh4 {[%emt 0:30:11]} 42. Qxh6# {[%emt 0:00:03]} 1-0

[Event "WSTCC-50 2024"]
[Site "Krakow"]
[Date "2024.07.04"]
[Round "3.4"]
[White "Kantorik, Marian"]
[Black "Jhunjhnuwala, Suresh"]
[Result "1-0"]
[ECO "D02"]
[WhiteElo "2198"]
[BlackElo "1888"]
[Annotator "RC"]
[PlyCount "63"]
[EventDate "2024.07.01"]
[EventType "team-tourn"]
[EventCountry "POL"]
[SourceTitle "playchess.com"]
[Source "ChessBase"]
[SourceQuality "1"]
[TimeControl "40/5400+30:1800+30"]

1. d4 {[%emt 0:00:05]} d5 {[%emt 0:00:06]} 2. Nf3 {[%emt 0:00:06]} g6 {[%emt 0:00:16]} 3. Bf4 {[%emt 0:00:20]} Bg7 {[%emt 0:00:30]} 4. e3 {[%emt 0:00:23]} Nf6 {[%emt 0:00:21]} 5. Nbd2 {[%emt 0:00:37]} O-O {[%emt 0:00:33]} 6. h4 {[%emt 0:00:30]} Bg4 {[%emt 0:01:04]} 7. Be2 {[%emt 0:00:10]} Nbd7 {[%emt 0:01:01]} 8. Ne5 {[%emt 0:00:22]} Bxe2 {[%emt 0:07:12]} 9. Qxe2 {[%emt 0:00:07]} Nxe5 {[%emt 0:04:04]} 10. Bxe5 {[%emt 0:00:24]} Nd7 {[%emt 0:03:07]} 11. Bxg7 {[%emt 0:00:22]} Kxg7 {[%emt 0:00:03]} 12. h5 {[%emt 0:00:29]} e5 {[%emt 0:03:42]} 13. dxe5 {[%emt 0:02:41]} Nxe5 {[%emt 0:01:18]} 14. f4 {[%emt 0:00:19]} Nd7 {[%emt 0:01:19]} 15. O-O-O {[%emt 0:00:33]} Qe7 {[%emt 0:05:18]} 16. Rh3 {[%emt 0:16:53]} Rae8 {[%emt 0:23:39]} 17. g4 {[%emt 0:19:46]} g5 {[%emt 0:15:31]} 18. fxg5 {[%emt 0:08:35]} Qxg5 {[%emt 0:02:04]} 19. Rf1 {[%emt 0:00:37]} f5 {[%emt 0:04:39]} 20. h6+ {[%emt 0:00:29]} Kh8 {[%emt 0:03:25]} 21. gxf5 {[%emt 0:06:55]} Rxf5 {[%emt 0:00:57]} 22. Rxf5 {[%emt 0:08:12]} Qxf5 {[%emt 0:00:08]} 23. Rg3 {[%emt 0:00:18]} Rg8 {[%emt 0:05:03]} 24. Rxg8+ {[%emt 0:05:16]} Kxg8 {[%emt 0:00:07]} 25. Qg2+ {[%emt 0:00:55]} Kf8 {[%emt 0:06:13]} 26. Nf3 {[%emt 0:04:34]} Qe4 {[%emt 0:02:56]} 27. Kd2 {[%emt 0:08:18]} Qg6 {[%emt 0:02:09]} 28. Qh3 {[%emt 0:00:24]} Ke7 {[%emt 0:00:37]} 29. Qxd7+ {[%emt 0:01:06]} Kxd7 {[%emt 0:01:13]} 30. Ne5+ {[%emt 0:00:04]} Ke6 {[%emt 0:00:11]} 31. Nxg6 {[%emt 0:00:05]} Kf6 {[%emt 0:01:26]} 32. Nf8 {[%emt 0:00:48]} 1-0

[Event "WSTCC-50 2024"]
[Site "Krakow"]
[Date "2024.07.04"]
[Round "3.4"]
[White "Koganov, Mikhail"]
[Black "Novikov, Igor"]
[Result "0-1"]
[ECO "B51"]
[WhiteElo "2177"]
[BlackElo "2509"]
[Annotator "TA"]
[PlyCount "64"]
[EventDate "2024.07.01"]
[EventType "team-tourn"]
[EventCountry "POL"]
[SourceTitle "playchess.com"]
[Source "ChessBase"]
[SourceQuality "1"]
[TimeControl "40/5400+30:1800+30"]

{[%evp 9,64,17,21,-10,-8,-22,-19,-20,-9,-10,-12,-24,0,-23,-12,-16,-4,-27,-42,-58,-33,-60,-54,-60,-56,-61,-62,-84,-64,-54,-62,-108,-76,-83,-79,-144,-150,-168,-145,-163,-174,-162,-166,-152,-165,-443,-285,-397,-411,-517,-502,-567,-567,-562,-559,-760,-742]} 1. e4 {[%emt 0:00:18]} c5 {[%emt 0:00:09]} 2. Nf3 {[%emt 0:00:07]} d6 {[%emt 0:00:07]} 3. Bb5+ {[%emt 0:00:22]} Nd7 {[%emt 0:00:26]} 4. O-O {[%emt 0:01:57]} a6 {[%emt 0:00:51]} 5. Bd3 {[%emt 0:00:45]} Ngf6 {[%emt 0:10:32]} 6. b3 {[%emt 0:01:31]} g6 {[%emt 0:00:57]} 7. Bb2 {[%emt 0:00:33]} Bg7 {[%emt 0:00:07]} 8. Re1 {[%emt 0:03:09] The position is equal.} e5 {[%emt 0:02:49]} 9. Bf1 {[%emt 0:03:17]} O-O {[%emt 0:00:29]} 10. a4 {[%emt 0:03:37]} b6 {[%emt 0:01:05]} 11. Na3 {[%emt 0:00:30]} Bb7 {[%emt 0:01:20]} 12. d3 {[%emt 0:01:37]} Qc7 {[%emt 0:01:14]} 13. Nc4 {[%emt 0:10:34]} Rfe8 {[%emt 0:01:39]} 14. g3 {[%emt 0:03:54]} d5 {[%emt 0:04:58]} 15. Ncd2 {[%emt 0:01:45]} Rad8 {[%emt 0:00:46][%cal Oc5c4]} 16. Qe2 {[%emt 0:00:38]} Nb8 {[%emt 0:23:12][%cal Bd7b8,Bb8c6,Bc6b4,Bb4a2,Ba2c3][%mdl 32]} 17. Bg2 {[%emt 0:04:38]} Nc6 {[%emt 0:00:14]} 18. Rac1 {[%emt 0:06:28]} b5 {[%emt 0:10:00]} 19. axb5 {[%emt 0:04:31]} axb5 {[%emt 0:00:02]} 20. Ba1 {[%emt 0:10:02]} (20. c3 $15) 20... d4 {[%emt 0:03:01]} 21. Bb2 {[%emt 0:05:23]} Nb4 {[%emt 0:02:26]} 22. Nf1 {[%emt 0:01:00] [#]} (22. c4 $142) 22... c4 $1 $17 {[%emt 0:02:26][%mdl 512] Black is much more active.} 23. bxc4 {[%emt 0:00:52]} (23. Ba3 Na2) 23... bxc4 {[%emt 0:00:07]} 24. Ba3 {[%emt 0:00:36]} Na2 {[%emt 0:02:21] White must now prevent ...Ra8.} 25. Ra1 {[%emt 0:02:04]} Nc3 $36 {[%emt 0:00:37][%mdl 2048] Black is on the roll.} 26. Qd2 {[%emt 0:00:08]} Ra8 {[%emt 0:02:35]} 27. Rec1 $2 {[%emt 0:09:04]} (27. h4) 27... Ra6 {[%emt 0:02:08][%cal Og7h6] [#] And now ...Bh6! would win.} 28. Bb2 {[%emt 0:08:50]} Na2 {[%emt 0:00:30]} 29. c3 {[%emt 0:05:18][%cal Oc3d4]} Nxc1 {[%emt 0:00:53] Black is clearly winning.} 30. Rxc1 {[%emt 0:00:13]} Ra2 {[%emt 0:02:57]} 31. cxd4 {[%emt 0:02:49][%cal Rf3e5]} Qb6 {[%emt 0:00:53]} 32. Qc3 {[%emt 0:00:36]} Rxb2 {[%emt 0:01:50] Weighted Error Value: White=0.52/Black=0.12 (very precise) .  Mistake:       	White=3     	---        Inaccurate:     	White=3     	Black=1      OK:         	White=6     	Black=17     Best:        	White=2     	Black=1} 0-1

[Event "WSTCC-50 2024"]
[Site "Krakow"]
[Date "2024.07.04"]
[Round "3.4"]
[White "Noyce, Robert C"]
[Black "Buriene, Regina"]
[Result "1-0"]
[ECO "A22"]
[WhiteElo "2088"]
[BlackElo "1904"]
[Annotator "NA RC"]
[PlyCount "61"]
[EventDate "2024.07.01"]
[EventType "team-tourn"]
[EventCountry "POL"]
[SourceTitle "playchess.com"]
[Source "ChessBase"]
[SourceQuality "1"]
[TimeControl "40/5400+30:1800+30"]

1. c4 {[%emt 0:00:00]} e5 {[%emt 0:00:39]} 2. Nc3 {[%emt 0:00:10]} Nf6 {[%emt 0:00:16]} 3. e4 {[%emt 0:00:58]} Be7 {[%emt 0:04:00]} 4. g3 {[%emt 0:00:23]} O-O {[%emt 0:00:13]} 5. Bg2 {[%emt 0:00:46]} d6 {[%emt 0:14:41]} 6. Nge2 {[%emt 0:03:25]} c5 {[%emt 0:01:47]} 7. O-O {[%emt 0:00:36]} Nc6 {[%emt 0:01:53]} 8. h3 {[%emt 0:01:37]} Rb8 {[%emt 0:09:31]} 9. d3 {[%emt 0:02:24]} a6 {[%emt 0:10:16]} 10. f4 {[%emt 0:06:20]} b5 {[%emt 0:03:36]} 11. f5 {[%emt 0:07:16]} Nd4 {[%emt 0:07:57]} 12. g4 {[%emt 0:15:25]} Ne8 {[%emt 0:09:01]} 13. b3 {[%emt 0:16:40]} Bg5 {[%emt 0:02:47]} 14. Kh2 {[%emt 0:02:40]} Nxe2 {[%emt 0:00:39]} 15. Nxe2 {[%emt 0:01:14]} Bxc1 {[%emt 0:00:14]} 16. Qxc1 {[%emt 0:00:30]} h6 {[%emt 0:00:42]} 17. Ng1 {[%emt 0:01:32]} Qg5 {[%emt 0:00:54]} 18. Qe1 {[%emt 0:02:32]} h5 {[%emt 0:00:50]} 19. h4 {[%emt 0:03:05]} Qh6 {[%emt 0:03:11]} 20. g5 {[%emt 0:02:12]} Qh7 {[%emt 0:00:36]} 21. Ne2 {[%emt 0:03:25]} g6 {[%emt 0:09:19]} 22. f6 {[%emt 0:05:08]} Kh8 {[%emt 0:02:20]} 23. Qa5 {[%emt 0:04:40]} Qg8 {[%emt 0:00:39]} 24. Bh3 {[%emt 0:00:48]} Bxh3 {[%emt 0:04:10]} 25. Kxh3 {[%emt 0:00:09]} Nc7 {[%emt 0:02:01]} 26. Qxc7 {[%emt 0:01:10]} Rfd8 {[%emt 0:00:01]} 27. cxb5 {[%emt 0:03:52]} Qe8 {[%emt 0:02:41]} 28. Qe7 {[%emt 0:01:04]} Qxb5 {[%emt 0:00:48]} 29. Qxf7 {[%emt 0:00:23]} Rb7 30. Qxg6 {[%emt 0:00:39]} Qd7+ {[%emt 0:04:47]} 31. Qf5 {[%emt 0:00:26]} 1-0

[Event "WSTCC-50 2024"]
[Site "Krakow"]
[Date "2024.07.04"]
[Round "3.5"]
[White "Buckley, Graeme N"]
[Black "Adams, Michael"]
[Result "0-1"]
[ECO "C78"]
[WhiteElo "2334"]
[BlackElo "2670"]
[Annotator "TA"]
[PlyCount "104"]
[EventDate "2024.07.01"]
[EventType "team-tourn"]
[EventCountry "POL"]
[SourceTitle "playchess.com"]
[Source "ChessBase"]
[SourceQuality "1"]
[TimeControl "40/5400+30:1800+30"]

{[%evp 17,104,22,47,0,15,20,13,9,10,0,28,0,12,2,17,15,19,0,0,0,0,0,0,-6,-4,-60,-59,-60,-65,-69,0,0,0,0,0,0,0,0,0,0,0,0,0,0,0,0,0,0,0,0,0,0,0,0,0,0,0,0,0,0,0,0,0,0,0,0,0,0,0,0,0,0,0,0,0,0,0,-8,-8,-80,-115,-985,-948,-1265,-1226,-2843,-2356,-1730,-1231]} 1. e4 {[%emt 0:00:06]} e5 {[%emt 0:00:08]} 2. Nf3 {[%emt 0:00:05]} Nc6 {[%emt 0:00:05]} 3. Bb5 {[%emt 0:00:08]} a6 {[%emt 0:00:07]} 4. Ba4 {[%emt 0:00:05]} Nf6 {[%emt 0:00:09]} 5. O-O {[%emt 0:00:08]} b5 {[%emt 0:00:07]} 6. Bb3 {[%emt 0:00:03]} Bc5 {[%emt 0:00:08][%cal Bf8c5,Bc5b6,Bb6a7][%mdl 32]} 7. c3 {[%emt 0:00:30]} d6 {[%emt 0:00:22]} 8. d4 {[%emt 0:00:15]} Bb6 {[%emt 0:00:33]} 9. a4 {[%emt 0:01:01][%cal Ba2a4,Ba4a5][%mdl 32]} Rb8 {[%emt 0:02:40]} 10. a5 {[%emt 0:01:06] The main line 10.a5 scores better than 10.axb5. C78: Ruy Lopez: Archangelsk and Möller Defences.} Ba7 $1 {[%emt 0:00:05]} (10... Nxa5 11. Rxa5 Bxa5 12. dxe5 Nxe4 13. Qd5) 11. h3 {[%emt 0:03:13]} Bb7 {[%emt 0:00:46]} 12. Be3 {[%emt 0:04:53]} Nxe4 {[%emt 0:03:01]} 13. Re1 {[%emt 0:03:07]} (13. d5 {looks sharper.} Bxe3 14. dxc6 Nxf2 15. Qe2) 13... Ne7 {[%emt 0:07:57][%cal Bc6e7,Be7d5,Bd5f4][%mdl 32]} 14. dxe5 {[%emt 0:06:32]} Bxe3 {[%emt 0:06:00]} 15. Rxe3 {[%emt 0:00:10]} O-O {[%emt 0:03:13]} 16. Nbd2 {[%emt 0:07:30]} Nc5 {[%emt 0:03:29]} 17. Bc2 {[%emt 0:08:59]} Nd5 {[%emt 0:06:49]} 18. Re1 {[%emt 0:00:05]} Nf4 {[%emt 0:01:48]} 19. Ne4 {[%emt 0:05:21][%cal Re5d6]} Re8 {[%emt 0:06:21]} 20. Qd2 $146 {[%emt 0:04:15]} ({Predecessor:} 20. b4 Nxe4 21. Bxe4 Bxe4 22. Rxe4 dxe5 23. Nxe5 Nxh3+ 24. gxh3 Qg5+ 25. Kh1 Rxe5 26. f4 Qf5 27. Rxe5 Qxh3+ 28. Kg1 Qg3+ 29. Kh1 Qh3+ 30. Kg1 Qg3+ 31. Kh1 Qh3+ {½-½ Duda,J (2724)-Caruana,F (2764) Bucharest Superbet Classic 3rd 2023 (5)}) 20... Bxe4 {[%emt 0:03:41]} 21. Bxe4 {[%emt 0:00:09]} ({White should try} 21. Rxe4 $11 dxe5 (21... Nxe4 22. Qxf4 Nc5 23. Ng5 $11) 22. Qxd8 Rexd8 23. Rxe5) 21... dxe5 $15 {[%emt 0:01:52] ...Qxd2 is the strong threat.} 22. Qe3 {[%emt 0:10:41]} Nxe4 {[%emt 0:02:26]} 23. Qxe4 {[%emt 0:00:04][%cal Oa1d1]} Qd3 {[%emt 0:06:30]} (23... f6 $15 24. Rad1 Qc8) 24. Nxe5 $11 {[%emt 0:07:20]} Qxe4 {[%emt 0:10:03]} 25. Rxe4 {[%emt 0:00:04]} Rbd8 {[%emt 0:05:17] Repels Rd1} 26. Rxf4 {[%emt 0:06:51]} Rxe5 {[%emt 0:00:06][%mdl 4096] Endgame. KRR-KRR} 27. Rd4 {[%emt 0:00:05]} Red5 {[%emt 0:06:01]} 28. Re4 {[%emt 0:14:02]} g6 {[%emt 0:05:52]} 29. Rae1 {[%emt 0:00:55]} Kg7 {[%emt 0:02:30]} 30. g4 {[%emt 0:05:00]} R8d6 {[%emt 0:04:31]} 31. R1e2 {[%emt 0:02:50]} Rd2 {[%emt 0:04:16]} 32. Kf1 {[%emt 0:00:34]} c5 {[%emt 0:01:51]} 33. Re7 {[%emt 0:02:27]} Rd1+ {[%emt 0:00:36]} 34. Kg2 {[%emt 0:00:36]} Ra1 {[%emt 0:01:35]} 35. b4 {[%emt 0:04:33]} cxb4 {[%emt 0:00:17]} 36. cxb4 {[%emt 0:00:02]} Rb1 {[%emt 0:01:27]} 37. R7e4 {[%emt 0:00:40]} Rb3 {[%emt 0:01:55]} 38. Rf4 {[%emt 0:02:18]} g5 {[%emt 0:01:02]} 39. Rf5 {[%emt 0:00:28]} Rxb4 {[%emt 0:01:58]} 40. Re7 {[%emt 0:00:27]} Rf6 {[%emt 0:00:06]} 41. Rxf6 {[%emt 0:30:32]} Kxf6 {[%emt 0:30:04] KR-KR} 42. Ra7 {[%emt 0:00:05]} Ra4 {[%emt 0:00:46]} 43. Rxa6+ {[%emt 0:00:13]} Ke5 {[%emt 0:00:40]} 44. Ra8 {[%emt 0:00:00]} Kd4 {[%emt 0:00:00] Strongly threatening ...b4.} 45. a6 {[%emt 0:00:00]} Kc3 {[%emt 0:00:00]} 46. a7 {[%emt 0:00:00] Threatens to win with Rc8+.} Kb4 {[%emt 0:00:00]} 47. Kf3 {[%emt 0:00:00]} Ra5 {[%emt 0:00:00] And now ...Ka4 would win.} 48. Ke4 {[%emt 0:00:00] [#]} (48. h4 $1 $11 {was the only way to keep the balance.} gxh4 (48... Ra3+ 49. Ke2 $11) 49. g5) 48... Ka4 $1 $17 {[%emt 0:00:00]} 49. Kd5 $2 {[%emt 0:00:00][%mdl 8192]} (49. Kd3 $17) 49... b4+ $19 {[%emt 0:00:00]} 50. Kc4 {[%emt 0:00:00] [#]} Ka3 $1 {[%emt 0:00:00]} 51. Kd3 {[%emt 0:00:00]} b3 {[%emt 0:00:00] aiming for ...b2.} 52. Kd2 {[%emt 0:00:00]} Ka2 0-1

[Event "WSTCC-50 2024"]
[Site "Krakow"]
[Date "2024.07.04"]
[Round "3.5"]
[White "Rogowski, Jaroslaw"]
[Black "Plotkin, Victor"]
[Result "0-1"]
[ECO "D31"]
[WhiteElo "2149"]
[BlackElo "2264"]
[Annotator "RC"]
[PlyCount "32"]
[EventDate "2024.07.01"]
[EventType "team-tourn"]
[EventCountry "POL"]
[SourceTitle "playchess.com"]
[Source "ChessBase"]
[SourceQuality "1"]
[TimeControl "40/5400+30:1800+30"]

1. d4 {[%emt 0:00:07]} d5 {[%emt 0:00:11]} 2. c4 {[%emt 0:00:05]} e6 {[%emt 0:00:07]} 3. Nc3 {[%emt 0:00:08]} Be7 {[%emt 0:00:13]} 4. Bf4 {[%emt 0:01:51]} Nf6 {[%emt 0:00:27]} 5. e3 {[%emt 0:00:17]} c5 {[%emt 0:05:40]} 6. dxc5 {[%emt 0:02:54]} Bxc5 {[%emt 0:00:43]} 7. a3 {[%emt 0:02:59]} O-O {[%emt 0:01:45]} 8. Nf3 {[%emt 0:10:55]} Nc6 {[%emt 0:03:19]} 9. Qc2 {[%emt 0:06:01]} Be7 {[%emt 0:22:07]} 10. Rd1 {[%emt 0:02:48]} Qa5 {[%emt 0:02:05]} 11. Nd2 {[%emt 0:14:02]} e5 {[%emt 0:09:02]} 12. Nb3 {[%emt 0:05:11]} Qb6 {[%emt 0:04:52]} 13. Na4 {[%emt 0:09:44]} Qa6 {[%emt 0:12:27]} 14. Nac5 {[%emt 0:05:51]} Bxc5 {[%emt 0:01:06]} 15. Nxc5 {[%emt 0:13:10]} Qa5+ {[%emt 0:00:28]} 16. b4 {[%emt 0:00:02]} Qxa3 {[%emt 0:01:41]} 0-1

[Event "WSTCC-50 2024"]
[Site "Krakow"]
[Date "2024.07.04"]
[Round "3.5"]
[White "Slabek, Grzegorz"]
[Black "Davis, Lee"]
[Result "1/2-1/2"]
[ECO "A48"]
[WhiteElo "1962"]
[BlackElo "1932"]
[Annotator "NA RC"]
[PlyCount "68"]
[EventDate "2024.07.01"]
[EventType "team-tourn"]
[EventCountry "POL"]
[SourceTitle "playchess.com"]
[Source "ChessBase"]
[SourceQuality "1"]
[TimeControl "40/5400+30:1800+30"]

1. Nf3 {[%emt 0:00:04]} Nf6 {[%emt 0:00:10]} 2. d4 {[%emt 0:00:08]} g6 {[%emt 0:00:11]} 3. e3 {[%emt 0:00:26]} Bg7 {[%emt 0:00:09]} 4. Be2 {[%emt 0:00:24]} O-O {[%emt 0:00:07]} 5. O-O {[%emt 0:00:06]} d6 {[%emt 0:00:03]} 6. b4 {[%emt 0:00:28]} Nbd7 {[%emt 0:07:05]} 7. Bb2 {[%emt 0:00:17]} c5 {[%emt 0:01:49]} 8. b5 {[%emt 0:04:10]} b6 {[%emt 0:00:58]} 9. c4 {[%emt 0:04:09]} Qc7 {[%emt 0:04:09]} 10. d5 {[%emt 0:03:37]} Ng4 {[%emt 0:05:19]} 11. Bxg7 {[%emt 0:00:43]} Kxg7 {[%emt 0:00:02]} 12. Nbd2 {[%emt 0:01:45]} Nge5 {[%emt 0:01:11]} 13. Nxe5 {[%emt 0:00:19]} Nxe5 {[%emt 0:00:11]} 14. f4 {[%emt 0:00:18]} Nd7 {[%emt 0:00:08]} 15. Bf3 {[%emt 0:02:08]} f5 {[%emt 0:01:20]} 16. a4 {[%emt 0:00:57]} Nf6 {[%emt 0:00:20]} 17. a5 {[%emt 0:00:40]} Bb7 {[%emt 0:00:46]} 18. Ra3 {[%emt 0:00:57]} a6 {[%emt 0:03:11]} 19. bxa6 {[%emt 0:00:32]} Rxa6 {[%emt 0:00:37]} 20. axb6 {[%emt 0:00:40]} Rxb6 {[%emt 0:05:07]} 21. Qa1 {[%emt 0:00:29]} Bc8 {[%emt 0:02:05]} 22. e4 {[%emt 0:08:05]} fxe4 {[%emt 0:02:36]} 23. Nxe4 {[%emt 0:00:09]} Bd7 {[%emt 0:08:26]} 24. h3 {[%emt 0:05:55]} Kg8 {[%emt 0:01:53]} 25. Ng5 {[%emt 0:06:47]} Rfb8 {[%emt 0:06:57]} 26. Re1 {[%emt 0:01:25]} Bf5 {[%emt 0:02:04]} 27. Kh2 {[%emt 0:04:14]} Rb1 {[%emt 0:03:58]} 28. Rxb1 {[%emt 0:00:21]} Rxb1 {[%emt 0:00:16]} 29. Ra8+ {[%emt 0:00:59]} Rb8 {[%emt 0:00:13]} 30. Rxb8+ {[%emt 0:03:22]} Qxb8 {[%emt 0:00:04]} 31. Qe1 {[%emt 0:01:26]} Qf8 {[%emt 0:01:35]} 32. Qe2 {[%emt 0:02:04]} Bc8 {[%emt 0:00:44]} 33. g3 {[%emt 0:02:24]} Bd7 {[%emt 0:00:47]} 34. Kg2 Bc8 1/2-1/2